Cogmind - Beta 16.1 @@@ ROGUE MODE // 2026.04.04 @ 01:58:12 Player: Ammie Result: Destroyed by G-34 Mercenary with Small Laser Performance ------------- Evolutions (1) 500 Regions Visited (2) 400 Robots Destroyed (56) 280 Value Destroyed (1269) 1269 Prototype IDs (3) 60 Alien Tech Used (0) 0 Bonus (0) 0 TOTAL SCORE: 2509 Bonus ------- None Cogmind --------- Core Integrity 0/400 Matter 280/300 Energy 81/100 System Corruption 1% Temperature Cool (6) Movement Core (50) Location -9/Materials Parts ------- > --- POWER (1) -------- (None) > --- PROPULSION (2) --- (None) > --- UTILITY (4) ------ Hacking Suite > --- WEAPON (2) ------- (None) > --- INVENTORY (5) ---- Improved Ion Engine Hacking Suite Hacking Suite Field Laser Field Laser Peak State ------------ > --- POWER ------------ Heavy Ion Engine > --- PROPULSION ------- Aluminum Leg Improved Flight Unit > --- UTILITY ---------- Small Storage Unit Weight Redist. System Visual Processing Unit Reaction Control System > --- WEAPON ----------- Field Laser Improved Light Cannon > --- INVENTORY -------- Improved Ion Engine Hacking Suite Hacking Suite Hacking Suite Hacking Suite Field Laser Field Laser Field Laser [Rating: 22] Favorites ----------- Power Heavy Ion Engine Engine Heavy Ion Engine Propulsion Aluminum Leg Treads Light Treads Leg Aluminum Leg Flight Unit Improved Flight Unit Utility Small Storage Unit Device Reaction Control System Storage Small Storage Unit Processor Visual Processing Unit Hackware Hacking Suite Protection Propulsion Shielding Weapon Improved Light Cannon Energy Gun Field Laser Ballistic Gun Improved Assault Rifle Ballistic Cannon Improved Light Cannon Build | -11 -10 -9 ------- Run | Yrd Mat Mat Slots Evolved 2 | . . 2 Power . | . . . Propulsion . | . . . Utility 2 | . . 2 Weapon . | . . . Parts Attached 36 | 6 12 18 Power 5 | 1 2 2 Engine 5 | 1 2 2 Core . | . . . Reactor . | . . . Propulsion 11 | 2 4 5 Treads 2 | . . 2 Leg 8 | 2 4 2 Wheel . | . . . Hover . | . . . Flight 1 | . . 1 Utility 10 | 1 2 7 Device 4 | . 1 3 Storage 2 | 1 . 1 Processor 1 | . . 1 Hackware 2 | . . 2 Protection 1 | . 1 . Artifact . | . . . Weapon 10 | 2 4 4 Energy Gun 8 | 2 4 2 Energy Cannon . | . . . Ballistic Gun 1 | . . 1 Ballistic Cannon 1 | . . 1 Launcher . | . . . Special Weapon . | . . . Impact Weapon . | . . . Slashing Weapon . | . . . Piercing Weapon . | . . . Special Melee Weapon . | . . . Unidentified Prototypes 3 | . . 3 Parts Lost 14 | . 3 11 Power 2 | . 1 1 Propulsion 2 | . . 2 Utility 5 | . . 5 Weapon 5 | . 2 3 Highest Loss Streak 8 | . 1 8 To Critical Strikes . | . . . Average Backups 6 | 1 3 7 Power . | . . 1 Propulsion . | . 1 . Utility 2 | . . 3 Weapon 2 | . 1 2 Tool/Special . | . . . Unused Backups 5 | . . 5 Power . | . . . Propulsion . | . . . Utility 2 | . . 2 Weapon 3 | . . 3 Tool/Special . | . . . Average Slot Usage (%) 94 | . 97 92 Engine 11 | . 13 10 Treads 5 | . . 8 Leg 18 | . 27 13 Device 11 | . 2 16 Storage 12 | . 14 11 Processor 6 | . . 10 Protection 4 | . 11 . Energy Gun 16 | . 26 11 Ballistic Cannon 6 | . . 10 Peak Build Rating 22 | 6 7 22 Average Rating 13 | 5 6 17 On Entrance 4 | . 6 7 Avg Prop Armor Cover (%) 6 | . . 6 Naked Turns . | . . . Heaviest Build 96 | 12 15 96 Greatest Support 46 | 20 20 46 Greatest Overweight (x) 27 | 1 3 27 Average Overweight (x) . | . . 1 Largest Inventory Capacity 25 | 8 8 25 Average Capacity 13 | 7 8 16 Most Carried 8 | 2 8 8 Average Carried 6 | 1 3 7 Final Capacity 8 | 8 8 5 Final Carried 8 | 2 8 5 Class Distribution -------------------- 76% | Mutant 23% | Scavenger-Mutant Dominant Class ---------------- Mutant | -10/Materials Mutant | -9/Materials Resources | -11 -10 -9 ----------- Run | Yrd Mat Mat Matter Collected 1018 | 156 319 543 Remotely . | . . . Salvage Created 1721 | . 719 1002 Parts 129 | . 54 75 Haulers Intercepted 3 | . 2 1 Recyclers Shooed 2 | . . 2 Parts Field Recycled . | . . . Retrieved Matter . | . . . Parts Self-Destructed . | . . . Prevented . | . . . Parts Restored . | . . . Kills | -11 -10 -9 ------- Run | Yrd Mat Mat Combat Hostiles Destroyed 34 | . 15 19 Guns 17 | . 10 7 Cannons 12 | . . 12 AOE 5 | . 5 . Classes Destroyed 10 | . 8 2 Worker 3 | . 2 1 Builder 5 | . 2 3 Tunneler 1 | . 1 . Hauler 3 | . 2 1 Recycler 2 | . . 2 Operator 1 | . 1 . Watcher 7 | . 2 5 Swarmer 9 | . 6 3 Grunt 19 | . 9 10 Sentry 6 | . . 6 Best Kill Streak 5 | . 5 3 Combat Bots Only 3 | . 3 3 Max Kills in Single Turn 2 | . 2 2 Gunslinging . | . . . Exploded 2 | . 2 . Melee . | . . . Uniques/NPCs Destroyed . | . . . Combat | -11 -10 -9 -------- Run | Yrd Mat Mat Hostile Shots Fired 229 | . 69 160 Missed 75 | . 28 47 Hits 154 | . 41 113 Melee 8 | . . 8 Projectile 146 | . 41 105 Critical Strikes 6 | . 1 5 Damage Taken 1894 | . 458 1436 Core 474 | . 71 403 Absorbed by Shields . | . . . Redirected to Shielding 49 | . 49 . Core Remaining (%) 85 | 100 71 . Volleys Fired 174 | . 74 100 Largest 2 | . 2 2 Hottest 126 | . 100 126 Shots Fired 315 | . 135 180 Gun 218 | . 135 83 Cannon 97 | . . 97 Launcher . | . . . Special . | . . . Kinetic 97 | . . 97 Thermal 139 | . 56 83 Explosive . | . . . Electromagnetic 79 | . 79 . Robot Hit Streak 9 | . 8 9 Robot Miss Streak 9 | . 9 9 Penetration Max . | . . . Secondary Targets 2 | . 2 . Max Gunslinging Chain 1 | . 1 . Shots Hit Robots 143 | . 62 81 Core Hits 74 | . 35 39 Critical Kills . | . . . Critical Parts Destroyed . | . . . Critical Strikes 8 | . 3 5 Burn 3 | . 1 2 Blast 3 | . . 3 Corrupt 2 | . 2 . Melee Attacks . | . . . Impact . | . . . Slashing . | . . . Piercing . | . . . Sneak Attacks . | . . . Combat Hostiles . | . . . Follow-up Attacks . | . . . Damage Inflicted 2896 | . 1211 1685 Guns 1539 | . 900 639 Cannons 1046 | . . 1046 Explosions 308 | . 308 . Melee . | . . . Ramming 3 | . 3 . Kinetic 1046 | . . 1046 Thermal 1363 | . 724 639 Explosive . | . . . Electromagnetic 484 | . 484 . Impact . | . . . Slashing . | . . . Piercing . | . . . Highest Corruption 1 | . . 1 Average Corruption 1 | . . 1 Corruption Purged . | . . . Corruption Blocked . | . . . Overload Shots . | . . . Overflow Damage 1 | . . 1 Projectiles 1 | . . 1 Explosions . | . . . Melee . | . . . Knockbacks 5 | . . 5 Impact . | . . . Kinetic 4 | . . 4 Secondary 1 | . . 1 Self-Inflicted Damage . | . . . Shots . | . . . Rammed . | . . . Targets Rammed 1 | . 1 . Kicked 1 | . 1 . Crushed . | . . . Highest Temperature 356 | . 324 356 Average Temperature 73 | . 79 67 Received Heat Transfer 708 | . 189 519 Siege Activations . | . . . Martial Activations . | . . . Shielding Activations . | . . . Robots Disrupted . | . . . Combat Hostiles . | . . . Robots Corrupted . | . . . Combat Hostiles . | . . . Parts Fried 1 | . 1 . Impact Corruptions . | . . . Robots Melted . | . . . Combat Hostiles . | . . . Parts Melted 2 | . 2 . Heat Transferred 3186 | . 1595 1591 Parts Sabotaged . | . . . Parts Stolen . | . . . Parts Stripped . | . . . Power Chain Reactions 5 | . 5 . Alert | -11 -10 -9 ------- Run | Yrd Mat Mat Maximum Alert Level . | . . . Low Security (%) 100 | 100 100 100 Level 1 . | . . . Level 2 . | . . . Level 3 . | . . . Level 4 . | . . . Level 5 . | . . . High Security . | . . . Max Security . | . . . Peak Influence 193 | . 193 104 Initial 48 | . . 48 Average 66 | . 112 42 Influence Increases 1079 | . 517 562 Destroy 0b10 Robot/C 680 | . 300 380 Destroy 0b10 Robot/NC 110 | . 50 60 Destroy Leader 170 | . 68 102 Successful Hack 6 | . 6 . Disable Machine 45 | . 30 15 Destroy Structure 23 | . 18 5 Lose Combat Pursuer 45 | . 45 . Influence Decreases 1064 | . 402 662 Entered New Map 67 | . . 67 Time Decay 857 | . 372 485 Lost Part 140 | . 30 110 Squads Dispatched 5 | . 4 1 Investigation 3 | . 3 . Extermination . | . . . Reinforcement 2 | . 1 1 Assault . | . . . Garrison . | . . . Intercept . | . . . Searches Triggered . | . . . Construction Impeded . | . . . Haulers Reinforced . | . . . Active Scanning Responses . | . . . Cargo Convoy Interrupts . | . . . Stealth | -11 -10 -9 --------- Run | Yrd Mat Mat Distress Signals 5 | . 1 4 Communications Jammed . | . . . Distress Signals . | . . . Times Spotted 61 | . 24 37 Peak Tracking Total 7 | . 3 7 Tactical Retreats 3 | . 3 . Traps | -11 -10 -9 ------- Run | Yrd Mat Mat Traps Triggered 8 | . 6 2 Indirectly . | . . . Trap Hack Attempts . | . . . Triggered . | . . . Disarmed . | . . . Reprogrammed . | . . . Reused . | . . . Traps Extracted . | . . . Installed . | . . . Triggered . | . . . Machines | -11 -10 -9 ---------- Run | Yrd Mat Mat Machines Disabled 3 | . 2 1 Max in Single Turn 1 | . 1 1 Machines Repaired . | . . . Machines Dismantled . | . . . Machines Sabotaged . | . . . Overloaded Fab Kills . | . . . Hacking | -11 -10 -9 --------- Run | Yrd Mat Mat Machines Accessed 4 | . 3 1 Terminals 4 | . 3 1 Fabricators . | . . . Repair Stations . | . . . Recycling Units . | . . . Scanalyzers . | . . . Garrison Access . | . . . Total Hacks 13 | . 12 1 Successful 4 | . 3 1 Failed 9 | . 9 . Catastrophic . | . . . Database Lockouts . | . . . Manual 12 | . 12 . Terminals 13 | . 12 1 Fabricators . | . . . Repair Stations . | . . . Recycling Units . | . . . Scanalyzers . | . . . Garrison Access . | . . . Terminal Hacks 2 | . 1 1 Scanalyzer Index 1 | . 1 . Registered Components 1 | . . 1 Fabricator Hacks . | . . . Repair Station Hacks . | . . . Recycling Unit Hacks . | . . . Scanalyzer . | . . . Garrison Access Hacks . | . . . Unauthorized Hacks 2 | . 2 . Terminals 2 | . 2 . Assimilate 2 | . 2 . Fabricators . | . . . Repair Stations . | . . . Recycling Units . | . . . Scanalyzers . | . . . Garrison Access . | . . . Data Cores Recovered . | . . . Used . | . . . Hacking Detections 3 | . 3 . Full Trace Events 3 | . 3 . Feedback Events . | . . . Feedback Blocked . | . . . Robot Schematics Acquired . | . . . Robots Built . | . . . Authchips . | . . . Time . | . . . Total Robot Build Rating . | . . . Part Schematics Acquired . | . . . Parts Built . | . . . Authchips . | . . . Time . | . . . Total Part Build Rating . | . . . Part Studies Acquired . | . . . Parts Repaired . | . . . Time . | . . . Parts Recycled . | . . . Recycled Matter . | . . . Retrieved Matter . | . . . Retrieved Components . | . . . Parts Scanalyzed . | . . . Part Schematics Acquired . | . . . Parts Damaged . | . . . Bothacking | -11 -10 -9 ------------ Run | Yrd Mat Mat Used RIF Installer . | . . . Robots Hacked . | . . . Non-combat . | . . . Combat . | . . . Robot Hacks Applied . | . . . Relay Couplers Released . | . . . Fabnet Peak Effective % . | . . . Robots Rewired . | . . . Allies Hacked . | . . . Hacks Repelled . | . . . Allies | -11 -10 -9 -------- Run | Yrd Mat Mat Total Allies . | . . . Largest Group . | . . . Highest-Rated Group . | . . . Highest-Rated Ally . | . . . Total Orders . | . . . Ally Attacks . | . . . Total Damage . | . . . Kills . | . . . Allies Corrupted . | . . . Allies Melted . | . . . Intel | -11 -10 -9 ------- Run | Yrd Mat Mat Active Infowar (turns) 1591 | . . 1591 Optics 1591 | . . 1591 Robot Analysis Total . | . . . Derelict Logs Recovered . | . . . Drone Launches . | . . . Drone Recoveries . | . . . Exploration | -11 -10 -9 ------------- Run | Yrd Mat Mat Turns Passed 2631 | 66 935 1630 Spaces Moved 1124 | 48 564 512 Core 22 | 6 1 15 Treads 182 | . . 182 Legs 920 | 42 563 315 Wheels . | . . . Hover . | . . . Flight . | . . . Fastest Speed 50 | 50 120 50 Average Speed 172 | 115 120 236 Slowest Speed 1400 | 190 200 1400 Overloaded Moves . | . . . Propulsion Burnouts . | . . . Robots Hopped . | . . . Potential Cave-ins . | . . . Cave-ins Triggered . | . . . Exploration Rate (%) 49 | 4 81 62 Regions Visited 2 Branch Regions . Pre-discovered Areas . | . . . Known Exits Taken . | . . . Unknown Exits Taken 2 | 1 1 . Scrap Searched . | . . . Spaces Dug . | . . . Terrain Destroyed 21 | . 17 4 Melee . | . . . Projectile 4 | . . 4 AOE 17 | . 17 . Terrain Rammed . | . . . Walls Destroyed . | . . . Machines Disabled . | . . . Actions | -11 -10 -9 --------- Run | Yrd Mat Mat Total 1482 | 55 674 753 Wait 102 | . 7 95 Move 1122 | 47 563 512 Hop . | . . . Pick Up 15 | 2 4 9 Fast Attach 24 | 6 11 7 Attach 6 | . 2 4 Detach . | . . . Swap 21 | . 10 11 Drop 17 | . 2 15 Fire 174 | . 74 100 Melee . | . . . Ram . | . . . Kick 1 | . 1 . Crush . | . . . Escape Stasis . | . . . Rewire . | . . . Trap . | . . . Miscellaneous . | . . . Route ------- -11/Scrapyard -10/Materials (discovered 2 exits: *Mat / [*Min]) -9/Materials (discovered 1 exit: [*Min]) History --------- Turn | Location | Event 3 | -11/Scrapyard | Discovered new exit (range 15) 67 | -11/Scrapyard | Entered Materials 218 | -10/Materials | Discovered new exit (range 16) 309 | -10/Materials | Build established: Mutant 567 | -10/Materials | Derelicts attacked the area 899 | -10/Materials | Discovered new exit (range 4) 1002 | -10/Materials | Entered another Materials area 1002 | -9/Materials | Evolved 2 slots: Utility x2 1298 | -9/Materials | Build established: Scavenger-Mutant 2087 | -9/Materials | Build established: Mutant 2222 | -9/Materials | Discovered new exit (range 12) 2613 | -9/Materials | Core integrity fell below 50% 2623 | -9/Materials | Core integrity fell below 20% 2632 | -9/Materials | Destroyed by G-34 Mercenary with Small Laser Last Messages --------------- 02578_ ALERT: Hostiles spotted, dispatching reinforcements to Terminal M005. 02581_ Terminal disabled. 02589_ G-34 Mercenary suffers critical hit (Burn). 02593_ Hvy. Ion Engine destroyed. 02593_ U-05 Engineer builds a Door. 02593_ Imp. Light Cannon destroyed. 02593_ Visual Processing Unit destroyed. 02598_ U-05 Engineer destroyed. 02598_ U-05 Engineer builds a Wall. 02601_ L-31 Rogue suffers critical hit (Burn). 02601_ U-05 Engineer destroyed. 02601_ Lgt. Treads destroyed. 02603_ Weight Redist. System destroyed. 02603_ Field Laser destroyed. 02608_ Lgt. Treads destroyed. 02608_ Critical hit (Burn: +37). 02610_ Field Laser destroyed. 02624_ Hacking Suite severed. 02625_ Dropped Huge Storage Unit. Map ----- +----------------------------------------------------+ | | | | | | | | | | | | | | | | | | | | | ?????????????????????????????????????????????????? | | ?????????????????????????????????????????????????? | | ?????????????????????????????????????????????????? | | ?????????????????????????????????????????????????? | | ?????????????????????????????????????????????????? | | ?????????????????????????????????????????????????? | | ?????????????????????????????????????????????????? | | ?????????????#???????????????????????????????????? | | ????????????? ???????????????????????????????????? | | ????????????# ???????????????????????????????????? | | ????????????# ??###########??????????????????????? | | ????????????# ??# #??????????????????????? | | ??????????### ### " #??????????????????????? | | ???????+### # """ T #??????????????????????? | | ???????? # """ " #??????????????????????? | | ????????? + """ @#??????????????????????? | | ?????????? # """ #??????????????????????? | | ??????????? # gg #??????????????????????? | | ??????????## ## g #??????????????????????? | | ???????????# ########+###?? ###????????????????? | | ###????????# #??????# #?? #????????????????? | | #????????# ! ######## # """"??????????????????? | | #????????#!% ! + ""S""??????????????????? | | ########## *!########## "" "" ?????????????????? | | + %=%!#??????????? #????????????????? | | # #####+#####??????????####????????????????? | | # # #??###########?????????????????? | | ### + " """ #??# """ """ #?]???????????????? | | ??# ##### T """ #??# """ """ #?????????????????? | | ??# #???# " """ #??# """ """ #?????????????????? | | ### ###?# #??# #?????????????????? | | # #?#* #??# #?????????????????? | | # ###=!! #??# #?????????????????? | | + *+ %! #??# ! #?????????????????? | | # ###+#########??# #?????????????????? | | # #?# #??#############+#####?###+###?????????? | | ## ##?#!#??# #T### ##### #?????????? | | ?# #??#|#??# = %% % [ "?????????? | | ?# #??#=#??# %* % =[%!!%= #?????????? | | ?# #??# #??# [ %=[%![ #?????????? | +----------------------------------------------------+ Best States ------------- Heat Dissipation 38 Energy Generation 14 Energy Capacity 280 Matter Stores 300 Matter Capacity 300 Sight Range 18 Terrain Scan Density 10 Additional Mass Support 6 Propulsion Shielding 33 Evasion (%) 63 Recoil Reduction 2 Offensive Hacking 10 Item Schematics ----------------- None Robot Schematics ------------------ None Fabricated ------------ Nothing Repaired ---------- Nothing Studied --------- None Alien Tech Used ----------------- None Achievements -------------- None Challenges ------------ None Game ------ Seed StormHypertargetingKatana Manual? 0 Play Time 00:18:25 Cumulative 34.9 hours Start 2026.04.03 @ 22:36:26 End 2026.04.04 @ 01:58:12 Sessions 3 Manual Loads 0 Difficulty Rogue Special Mode None Game No. 65 Rogue 65 Adventurer 0 Explorer 0 Win Type - Total 0 Types 0/0/0/0/0/0/0/0/0/0 Lore% 13 Gallery% 22 Achievement% 19 Wizard Run 0 Options --------- Layout 0 ASCII 0 Keyboard 0 Movement Mouse Keybinds 0 Fullscreen 1 Font 24/Smallcaps Map View 38x25 Zoom Use 98% Tactical HUD 1 Map Filters NONE Filters NONE Steam 1 RUN: c1546677-399c-4ebf-b87c-2ab71f2e7d3d